bitfinex-derivatives/quotes_SOLF0:USTF0_20250730
["timestamp","ask_amount","ask_price","bid_price","bid_amount"]
[1753905443114,3.02,176.42,176.36,6.60682017]
[1753905443612,3.02,176.42,176.36,109.56]
[1753905443809,3.02,176.42,176.35,109.56]
[1753905444208,9.62682017,176.41,176.32,6.60682017]
[1753905444423,9.62682017,176.41,176.33,109.56]
[1753905444424,3.02,176.4,176.33,109.56]
[1753905444713,5.671,176.34,176.32,109.56]
[1753905445016,3.02,176.33,176.32,109.56]
[1753905445218,8.6913,176.33,176.32,109.56]
[1753905445715,3.02,176.33,176.28,6.60682017]
[1753905445922,3.02,176.38,176.29,109.54]
[1753905446414,6.60682017,176.37,176.29,109.54]
[1753905446614,3.02,176.36,176.29,109.54]
[1753905447207,8.6923,176.3,176.29,109.54]
[1753905447409,3.02,176.3,176.22,6.60682017]
[1753905447609,3.02,176.3,176.23,109.54]
[1753905447809,3.02,176.26,176.23,109.54]
[1753905448005,3.02,176.32,176.23,109.54]
[1753905448212,3.02,176.32,176.24,5.6741]
[1753905448414,3.02,176.32,176.24,6.60682017]
[1753905448812,3.02,176.32,176.26,6.60682017]
[1753905449419,3.02,176.32,176.28,6.60682017]
[1753905449918,6.60682017,176.37,176.29,109.54]
[1753905450224,3.17,176.31,176.29,109.54]
[1753905450420,6.60682017,176.37,176.29,109.54]
[1753905450421,3.17,176.36,176.29,109.54]
[1753905450920,8.8423,176.3,176.29,109.54]
[1753905452110,3.17,176.32,176.29,109.54]
[1753905452310,3.17,176.35,176.29,109.54]
[1753905452521,5.6715,176.33,176.29,109.54]
[1753905452822,3.17,176.33,176.29,109.54]
[1753905453116,3.17,176.33,176.3,6.60682017]
[1753905453422,3.17,176.36,176.3,6.60682017]
[1753905454019,23.24884557,176.47,176.33,6.60682017]
[1753905454020,3.17,176.39,176.33,6.60682017]
[1753905454323,3.17,176.38,176.34,109.52]
[1753905455122,3.17,176.37,176.34,109.52]
[1753905456619,8.8395,176.39,176.35,6.60682017]
[1753905456820,3.17,176.38,176.35,6.60682017]
[1753905457020,8.8395,176.39,176.35,6.60682017]
[1753905457216,5.6695,176.39,176.35,6.60682017]
[1753905457420,5.6698,176.38,176.35,6.60682017]
[1753905457619,6.60682017,176.46,176.35,6.60682017]
[1753905457820,3.17,176.38,176.35,6.60682017]
[1753905458019,6.60682017,176.46,176.35,6.60682017]
[1753905458223,3.17,176.38,176.35,6.60682017]
[1753905458522,17.0007,176.47,176.34,109.52]
[1753905458523,3.17,176.43,176.34,109.52]
[1753905458927,8.8404,176.36,176.34,109.52]
[1753905459323,3.17,176.36,176.34,109.52]
[1753905459921,6.60682017,176.4,176.28,381.12]
[1753905460234,3.17,176.37,176.29,109.48]
[1753905460820,3.17,176.37,176.31,6.60682017]
[1753905461319,6.60682017,176.4,176.31,6.60682017]
[1753905461524,3.17,176.32,176.31,6.60682017]
[1753905462322,5.6711,176.34,176.31,6.60682017]
[1753905462528,3.17,176.35,176.29,109.48]
[1753905462831,6.60682017,176.4,176.29,109.48]
[1753905463032,7.49544889,176.39,176.29,109.48]
[1753905463326,3.17,176.34,176.27,109.46]
[1753905464328,6.60682017,176.35,176.27,109.46]
[1753905464530,6.60682017,176.33,176.27,109.46]
[1753905464833,5.6729,176.28,176.27,109.46]
[1753905465434,6.60682017,176.34,176.27,109.46]
[1753905466633,11.3393,176.39,176.28,3.04]
[1753905466934,3.17,176.35,176.28,3.04]
[1753905467735,8.8423,176.3,176.28,3.04]
[1753905467936,6.60682017,176.36,176.27,109.46]
[1753905468131,3.17,176.29,176.27,109.46]
[1753905468828,8.8428,176.29,176.27,109.46]
[1753905469029,3.17,176.35,176.27,109.46]
[1753905469230,3.17,176.35,176.25,6.60682017]
[1753905469427,3.17,176.3,176.24,109.44]
[1753905469827,5.6731,176.28,176.24,112.48]
[1753905470032,3.17,176.3,176.24,112.48]
[1753905470228,3.17,176.3,176.24,109.44]
[1753905470631,3.17,176.3,176.26,3.04]
[1753905470836,3.17,176.3,176.27,3.04]
[1753905471038,8.8428,176.29,176.27,3.04]
[1753905471234,3.17,176.29,176.27,3.04]
[1753905471436,8.8426,176.29,176.27,3.04]
[1753905471638,3.17,176.32,176.26,3.04]
[1753905472535,3.17,176.32,176.24,109.44]
[1753905472735,8.8437,176.26,176.24,112.48]
[1753905472934,3.17,176.31,176.25,4.05601205]
[1753905473132,5.673,176.28,176.25,4.05601205]
[1753905473339,3.17,176.29,176.27,3.04]
[1753905473634,3.17,176.27,176.25,4.05601205]
[1753905473835,4.05601205,176.33,176.24,109.44]
[1753905474135,3.17,176.26,176.24,116.53601205]
[1753905474440,3.17,176.26,176.25,3.04]
[1753905474937,3.17,176.26,176.24,113.49601205]
[1753905475142,3.17,176.3,176.24,109.44]
[1753905475941,8.8439,176.25,176.24,109.44]
[1753905476339,5.6736,176.26,176.25,3.04]
[1753905477140,3.17,176.28,176.25,4.05601205]
[1753905477341,3.17,176.28,176.26,3.04]
[1753905477841,3.17,176.27,176.26,3.04]
[1753905478036,5.6735,176.26,176.25,7.09601205]
[1753905478738,5.6735,176.26,176.25,4.05601205]
[1753905479043,8.8439,176.25,176.24,109.44]
[1753905479246,3.17,176.25,176.24,109.4]
[1753905480343,8.8439,176.25,176.24,109.4]
[1753905480642,4.05601205,176.33,176.24,113.45601205]
[1753905480842,5.6733,176.27,176.24,116.62601205]
[1753905481039,3.17,176.3,176.24,109.4]
[1753905481239,4.05601205,176.29,176.24,109.4]
[1753905481436,8.8439,176.25,176.24,109.4]
[1753905481633,3.17,176.25,176.21,109.38]
[1753905481942,5.674,176.25,176.21,115.0551]
[1753905482143,3.17,176.25,176.21,109.38]
[1753905482339,4.05601205,176.27,176.21,109.38]
[1753905482539,3.17,176.24,176.21,112.55]
[1753905483146,3.17,176.24,176.22,3.17]
[1753905483438,3.17,176.26,176.23,3.17]
[1753905483640,4.05601205,176.3,176.21,113.43601205]
[1753905484038,3.17,176.29,176.22,3.17]
[1753905484233,3.17,176.27,176.23,4.05601205]
[1753905484443,4.05601205,176.32,176.24,3.17]
[1753905484643,5.6735,176.27,176.24,3.17]
[1753905484845,3.17,176.26,176.25,3.17]
[1753905485040,4.05601205,176.32,176.24,3.17]
[1753905485242,3.17,176.26,176.23,4.05601205]
[1753905485440,3.17,176.31,176.23,4.05601205]
[1753905485638,5.6738,176.26,176.22,3.17]
[1753905485843,3.17,176.25,176.24,3.17]
[1753905486244,3.17,176.25,176.21,113.43601205]
[1753905486444,3.17,176.25,176.22,3.17]
[1753905486845,5.6742,176.24,176.23,3.17]
[1753905487052,3.17,176.27,176.21,109.38]
[1753905487249,5.6741,176.25,176.21,109.38]
[1753905487448,5.6741,176.25,176.23,3.17]
[1753905487449,3.17,176.25,176.23,3.17]
[1753905487656,3.17,176.29,176.22,109.34]
[1753905488053,3.17,176.29,176.22,112.51]
[1753905488444,5.6734,176.27,176.23,4.05601205]
[1753905488649,4.05601205,176.32,176.24,112.51]
[1753905488852,3.17,176.25,176.24,112.51]
[1753905489054,3.17,176.25,176.24,109.34]
[1753905489658,3.17,176.25,176.2,4.05601205]
[1753905489961,3.17,176.23,176.21,112.51]
[1753905490161,3.17,176.26,176.22,3.17]
[1753905490355,3.17,176.29,176.22,7.22601205]
[1753905490855,5.6736,176.26,176.22,4.05601205]
[1753905491055,8.8436,176.26,176.22,4.05601205]
[1753905491254,3.17,176.26,176.23,3.17]
[1753905491455,3.17,176.25,176.23,3.17]
[1753905491656,3.17,176.25,176.24,3.17]
[1753905492361,8.8438,176.26,176.24,3.17]
[1753905492565,8.8438,176.26,176.25,109.32]
[1753905495763,3.17,176.23,176.22,109.3]
[1753905496467,3.17,176.28,176.22,109.3]
[1753905497865,5.6744,176.24,176.22,109.3]
[1753905498066,3.17,176.23,176.22,109.3]
[1753905498464,8.8445,176.23,176.22,109.3]
[1753905499565,3.17,176.26,176.23,3.17]
[1753905499864,4.05601205,176.34,176.27,3.17]
[1753905500167,8.8426,176.29,176.28,109.26]
[1753905500561,3.17,176.29,176.28,109.26]
[1753905500865,3.17,176.34,176.28,116.48601205]
[1753905501065,3.17,176.34,176.3,3.17]
[1753905501269,3.17,176.32,176.3,3.17]
[1753905501467,3.17,176.32,176.29,3.17]
[1753905501768,3.17,176.32,176.31,3.17]
[1753905502467,8.8416,176.32,176.29,3.17]
[1753905502659,8.8416,176.32,176.3,3.17]
[1753905503268,3.17,176.32,176.3,3.17]
[1753905503968,8.8411,176.34,176.32,3.17]
[1753905504169,3.17,176.39,176.32,109.22]
[1753905504571,11.3368,176.43,176.32,109.22]
[1753905504572,8.8413,176.33,176.32,109.22]
[1753905505173,3.17,176.33,176.29,109.22]
[1753905505468,3.17,176.33,176.29,112.39]
[1753905505668,8.8418,176.32,176.29,112.39]
[1753905505860,3.17,176.35,176.29,112.39]
[1753905506065,3.17,176.35,176.29,109.22]
[1753905506365,11.3368,176.43,176.29,109.22]
[1753905506366,8.8423,176.3,176.29,109.22]
[1753905506570,3.17,176.3,176.25,7.22601205]
[1753905506772,3.17,176.28,176.26,109.2]
[1753905506970,3.17,176.28,176.27,3.17]
[1753905507370,3.17,176.32,176.27,7.22601205]
[1753905507671,3.17,176.35,176.28,3.17]
[1753905508076,5.6725,176.3,176.28,3.17]
[1753905508265,3.17,176.29,176.28,3.17]
[1753905508570,3.31,176.32,176.29,3.16]
[1753905508768,3.31,176.32,176.3,3.16]
[1753905508968,4.05601205,176.37,176.3,3.16]
[1753905509164,3.31,176.36,176.3,3.16]
[1753905509369,8.9818,176.32,176.3,3.16]
[1753905509576,3.31,176.31,176.3,3.16]
[1753905509769,3.31,176.31,176.27,7.21601205]
[1753905509970,3.31,176.3,176.28,3.16]
[1753905510168,4.05601205,176.35,176.27,4.05601205]
[1753905510373,5.6725,176.3,176.27,4.05601205]
[1753905510575,3.31,176.29,176.27,7.21601205]
[1753905510877,3.31,176.29,176.27,3.16]
[1753905511169,3.31,176.29,176.28,3.16]
[1753905511475,3.31,176.29,176.26,116.41601205]
[1753905511674,3.31,176.29,176.27,3.16]
[1753905512274,3.31,176.28,176.26,113.25601205]
[1753905512471,3.31,176.28,176.26,109.2]
[1753905512666,5.6732,176.27,176.26,109.2]
[1753905512871,8.9832,176.27,176.26,109.2]
[1753905513475,5.6748,176.22,176.2,3.16]
[1753905513665,3.31,176.21,176.19,109.12]
[1753905513870,3.31,176.24,176.17,3.16]
[1753905514073,5.6756,176.2,176.17,112.28]
[1753905514374,3.31,176.19,176.18,3.16]
[1753905514577,5.6756,176.2,176.18,3.16]
[1753905514881,8.9856,176.2,176.18,3.16]
[1753905515271,8.9858,176.19,176.17,109.12]
[1753905515468,3.31,176.19,176.17,112.28]
[1753905515671,11.345,176.3,176.18,3.16]
[1753905515672,4.05601205,176.25,176.18,3.16]
[1753905515976,3.31,176.24,176.18,3.16]
[1753905516671,5.675,176.22,176.18,3.16]
[1753905516875,3.31,176.21,176.19,3.17]
[1753905517272,3.31,176.21,176.2,3.17]
[1753905517978,3.31,176.21,176.19,109.12]
[1753905518372,5.676,176.19,176.18,109.12]
[1753905518581,8.986,176.19,176.18,109.12]
[1753905518769,3.31,176.19,176.18,109.12]
[1753905519074,3.31,176.21,176.19,3.17]
[1753905519472,8.9854,176.21,176.19,3.17]
[1753905519779,3.31,176.21,176.2,3.17]
[1753905519978,5.6752,176.21,176.18,112.29]
[1753905520177,8.9852,176.21,176.19,3.17]
[1753905520479,8.9844,176.24,176.2,3.17]
[1753905520776,8.9844,176.24,176.19,4.05601205]
[1753905520777,3.31,176.23,176.22,3.17]
[1753905521277,3.31,176.28,176.22,3.17]
[1753905521471,3.31,176.28,176.21,4.05601205]
[1753905521472,3.31,176.28,176.24,3.17]
[1753905521668,3.31,176.25,176.23,109.1]
[1753905521866,3.31,176.28,176.23,109.1]
[1753905522073,5.6742,176.24,176.23,109.1]
[1753905522274,8.9842,176.24,176.23,109.1]
[1753905524375,4.05601205,176.27,176.19,4.05601205]
[1753905524568,3.31,176.24,176.18,109.08]
[1753905524769,3.31,176.22,176.18,109.08]
[1753905524972,5.6758,176.19,176.18,109.08]
[1753905525171,3.31,176.19,176.14,3.17]
[1753905525384,3.31,176.19,176.14,112.25]
[1753905526880,3.31,176.2,176.15,3.17]
[1753905527274,3.31,176.2,176.16,3.17]
[1753905527574,3.31,176.2,176.14,109.08]
[1753905527778,5.6771,176.15,176.14,109.08]
[1753905527980,8.9871,176.15,176.14,109.08]
[1753905528681,3.31,176.16,176.1,3.17]
[1753905528882,3.31,176.16,176.11,112.23]
[1753905529074,8.987,176.16,176.11,112.23]
[1753905529275,3.31,176.16,176.11,109.06]
[1753905529475,3.31,176.16,176.11,112.23]
[1753905529676,8.9872,176.15,176.12,3.17]
[1753905529870,8.9872,176.15,176.13,3.17]
[1753905530075,3.31,176.14,176.13,3.17]
[1753905530775,8.9877,176.13,176.11,112.23]
[1753905531179,3.31,176.12,176.11,112.23]
[1753905531580,8.9875,176.14,176.11,109.06]
[1753905531784,3.31,176.14,176.12,3.17]
[1753905533084,3.31,176.18,176.13,3.17]
[1753905533285,3.31,176.16,176.11,112.23]
[1753905533675,3.31,176.13,176.11,112.23]
[1753905533879,5.6776,176.14,176.12,3.17]
[1753905534079,8.9876,176.14,176.12,3.17]
[1753905535288,3.31,176.13,176.12,3.17]
[1753905535681,8.9877,176.13,176.11,109.06]
[1753905535880,3.31,176.13,176.11,112.23]
[1753905536881,3.31,176.13,176.11,109.06]
[1753905537479,8.9881,176.12,176.08,385.23601205]
[1753905537685,3.31,176.12,176.03,4.05601205]
[1753905537986,3.31,176.09,176.07,3.17]
[1753905538487,3.31,176.08,176.05,3.17]
[1753905538686,3.31,176.08,176.04,109.02]
[1753905538885,4.05601205,176.15,176.09,3.17]
[1753905539085,3.09,176.11,176.09,112.19]
[1753905539286,4.05601205,176.15,176.09,112.19]
[1753905539484,11.3519,176.19,175.99,3.17]
[1753905539485,3.09,176.1,175.99,3.17]
[1753905539785,4.05601205,176.07,175.98,385.53601205]
[1753905539989,3.09,176.06,175.99,112.17]
[1753905540181,3.09,176.02,176.0,3.17]
[1753905540376,3.09,176.04,175.98,381.48]
[1753905540578,3.09,175.99,175.98,381.48]
[1753905540783,3.09,175.99,175.98,490.48]
[1753905540983,3.09,176.03,175.98,493.65]
[1753905541178,5.6817,176.01,175.98,490.48]
[1753905541385,4.05601205,176.04,175.99,3.17]
[1753905541582,4.05601205,176.06,175.99,5.6822]
[1753905541786,3.09,176.08,176.01,3.17]
[1753905542084,3.09,176.1,176.04,3.17]
[1753905542386,3.09,176.08,176.05,109.0]
[1753905542586,3.09,176.08,176.0,4.05601205]
[1753905542786,4.05601205,176.13,175.98,381.48]
[1753905542787,3.09,176.04,176.01,109.0]
[1753905542988,3.09,176.04,175.98,381.48]
[1753905543184,3.09,175.96,175.87,3.17]
[1753905543390,3.09,175.96,175.75,11.91893743]
[1753905543391,3.09,175.96,175.88,112.15]
[1753905543588,3.09,175.96,175.88,7.22601205]
[1753905543792,3.09,175.91,175.89,109.02]
[1753905544087,3.09,175.91,175.9,109.0]
[1753905544589,3.09,175.93,175.9,109.0]
[1753905544896,3.09,175.93,175.88,7.22601205]
[1753905544897,3.09,175.93,175.88,3.17]
[1753905545191,7.14601205,175.93,175.88,3.17]
[1753905545393,5.6854,175.9,175.88,3.17]
[1753905545689,7.14601205,175.93,175.88,3.17]
[1753905545886,3.09,175.93,175.88,3.17]
[1753905546083,7.14601205,175.93,175.88,3.17]
[1753905546289,5.6852,175.9,175.88,3.17]
[1753905546485,7.14601205,175.93,175.88,3.17]
[1753905546990,3.09,175.93,175.88,3.17]
[1753905547291,5.6849,175.91,175.89,109.02]
[1753905547486,3.09,175.93,175.89,109.02]
[1753905548090,3.09,175.92,175.89,109.02]
[1753905549197,3.09,175.92,175.87,112.19]
[1753905549590,6.63676915,175.91,175.87,112.19]
[1753905549790,6.63676915,175.92,175.87,109.02]
[1753905549994,6.63676915,175.92,175.87,109.04]
[1753905550291,16.09999172,176.06,175.88,3.17]
[1753905550497,3.09,175.98,175.89,6.63676915]
[1753905550693,3.09,175.98,175.91,9.80676915]
[1753905550898,3.09,176.01,175.97,6.63676915]
[1753905551094,3.09,176.01,175.98,109.04]
[1753905551291,3.09,176.03,176.0,3.17]
[1753905551491,6.63676915,176.07,176.01,3.17]
[1753905551693,3.09,176.04,175.99,3.17]
[1753905551894,3.09,176.02,175.97,3.17]
[1753905552094,3.09,176.0,175.94,6.63676915]
[1753905552295,8.7729,175.98,175.95,109.02]
[1753905552492,3.09,175.98,175.95,109.02]
[1753905552695,3.09,175.97,175.95,112.19]
[1753905553089,3.09,175.98,175.94,109.04]
[1753905553292,6.63676915,176.11,175.84,3.17]
[1753905553293,3.09,175.96,175.84,3.17]
[1753905553494,3.09,175.93,175.87,3.17]
[1753905553891,3.09,175.93,175.88,109.04]
[1753905554095,5.6853,175.9,175.89,3.17]
[1753905554693,3.09,175.94,175.9,3.17]
[1753905555197,5.6848,175.91,175.9,3.17]
[1753905555394,3.09,175.92,175.88,112.21]
[1753905555589,8.7751,175.91,175.88,109.04]
[1753905555787,6.63676915,175.96,175.88,109.04]
[1753905555788,3.09,175.95,175.88,112.21]
[1753905556500,3.09,175.95,175.88,109.04]
[1753905556904,5.6852,175.9,175.88,109.04]
[1753905557102,5.6852,175.9,175.88,112.21]
[1753905557304,3.09,175.92,175.88,109.04]
[1753905557501,3.09,175.99,175.88,109.04]
[1753905557697,3.09,175.95,175.88,112.21]
[1753905557893,5.6848,175.92,175.88,109.04]
[1753905558097,16.10009172,176.06,175.88,109.04]
[1753905558098,6.63676915,175.98,175.91,3.17]
[1753905558302,3.09,175.97,175.91,3.17]
[1753905558503,5.6848,175.92,175.9,112.21]
[1753905558704,11.3603,176.06,175.9,109.04]
[1753905558705,3.09,175.96,175.9,109.04]
[1753905558900,3.09,175.96,175.93,3.17]
[1753905559102,3.09,175.99,175.93,3.17]
[1753905559603,5.6828,175.98,175.94,3.17]
[1753905559906,3.09,175.99,175.96,3.17]
[1753905560100,5.6826,175.98,175.97,3.17]
[1753905560299,3.09,175.99,175.97,3.17]
[1753905560901,5.6826,175.98,175.97,3.17]
[1753905561097,3.09,175.99,175.97,3.17]
[1753905561300,6.63676915,176.01,175.92,3.17]
[1753905561509,3.09,176.0,175.94,109.06]
[1753905561806,3.09,175.97,175.92,109.04]
[1753905562005,5.6842,175.93,175.92,109.04]
[1753905562205,8.7742,175.93,175.92,109.04]
[1753905562402,6.63676915,175.98,175.92,109.04]
[1753905562595,16.09969172,176.07,175.92,109.04]
[1753905562596,3.09,175.95,175.92,109.04]
[1753905562904,3.09,175.95,175.92,112.21]
[1753905563205,3.09,176.01,175.93,3.17]
[1753905563907,5.6835,175.96,175.94,3.17]
[1753905564302,11.3599,176.07,175.92,109.04]
[1753905564303,3.09,175.95,175.92,109.04]
[1753905564606,3.09,175.95,175.93,3.17]
[1753905564807,5.6836,175.95,175.93,3.17]
[1753905565008,6.63676915,176.03,175.93,3.17]
[1753905565306,3.09,175.99,175.93,3.17]
[1753905565508,3.09,175.99,175.95,3.17]
[1753905565706,3.09,175.99,175.96,3.17]
[1753905566101,3.09,176.01,175.97,3.17]
[1753905566312,3.09,176.01,175.98,3.17]
[1753905566704,8.7717,176.01,175.98,3.17]
[1753905566901,3.09,176.01,175.98,3.17]
[1753905567101,3.09,176.01,175.97,109.04]
[1753905567408,3.09,176.06,175.97,109.04]
[1753905567706,5.6822,176.0,175.97,109.04]
[1753905567907,8.7722,176.0,175.97,112.21]
[1753905568303,5.6814,176.02,175.97,109.04]
[1753905568609,3.09,176.04,175.98,6.63676915]
[1753905569108,6.63676915,176.09,175.98,6.63676915]
[1753905569414,2.99,176.03,176.01,3.17]
[1753905569615,2.99,176.03,176.02,109.04]
[1753905570207,2.99,175.99,175.98,109.04]
[1753905570912,2.99,175.99,175.92,9.80676915]
[1753905571110,2.99,175.99,175.93,109.02]
[1753905571312,5.6834,175.96,175.93,109.02]
[1753905571507,8.6734,175.96,175.94,3.17]
[1753905572210,8.6734,175.96,175.95,109.02]
[1753905572419,5.6834,175.96,175.95,109.02]
[1753905572816,8.673,175.97,175.95,109.02]
[1753905573009,2.99,175.98,175.96,109.02]
[1753905573211,2.99,175.97,175.9,9.80676915]
[1753905573406,2.99,175.97,175.9,3.17]
[1753905573611,2.99,175.97,175.91,109.02]
[1753905574212,2.99,175.97,175.93,6.63676915]
[1753905574413,2.99,175.99,175.95,3.17]
[1753905574616,2.99,175.99,175.96,112.19]
[1753905574914,2.99,176.01,175.97,3.17]
[1753905575119,2.99,176.01,175.98,3.17]
[1753905575317,2.99,176.01,175.96,109.02]
[1753905575318,4.73979172,176.09,175.97,3.17]
[1753905575613,2.99,176.07,176.01,3.17]
[1753905575815,2.99,176.09,176.04,6.63676915]
[1753905576008,2.99,176.14,176.07,3.17]
[1753905576207,5.679,176.09,176.08,109.02]
[1753905576407,8.669,176.09,176.08,109.02]
[1753905577214,2.99,176.13,176.06,109.02]
[1753905577417,2.99,176.11,176.06,109.02]
[1753905577607,2.99,176.1,176.07,109.0]
[1753905577918,2.99,176.1,176.07,112.17]
[1753905578115,2.99,176.13,176.07,109.0]
[1753905578315,2.99,176.11,176.07,109.0]
[1753905578512,6.63676915,176.16,176.07,109.0]
[1753905578714,2.99,176.13,176.07,112.17]
[1753905579019,5.6793,176.09,176.07,3.17]
[1753905579219,2.99,176.15,176.07,3.17]
[1753905579517,5.6793,176.08,176.07,3.17]
[1753905579711,5.6793,176.08,176.06,109.0]
[1753905579918,2.99,176.09,176.06,112.17]
[1753905580223,8.6692,176.09,176.06,112.17]
[1753905580720,2.99,176.14,176.08,6.63676915]
[1753905580910,4.32147956,176.13,176.11,3.17]
[1753905581116,2.99,176.13,176.11,3.17]
[1753905581318,2.99,176.12,176.11,108.98]
[1753905581613,8.668,176.12,176.11,108.98]
[1753905581818,5.678,176.12,176.11,108.98]
[1753905582211,5.678,176.12,175.83,17.02]
[1753905582212,5.679,176.09,176.06,3.17]
[1753905582414,2.99,176.16,176.07,112.15]
[1753905582609,11.6369688,176.15,176.08,108.98]
[1753905582813,2.99,176.13,176.08,108.98]
[1753905583108,6.63676915,176.17,176.09,108.96]
[1753905583313,7.3142047,176.16,176.1,3.17]
[1753905583515,2.99,176.16,176.1,3.17]
[1753905583715,2.99,176.16,176.11,6.63676915]
[1753905583918,2.99,176.18,176.14,3.17]
[1753905584220,5.6768,176.16,176.15,3.17]
[1753905584514,2.99,176.18,176.15,3.17]
[1753905584720,2.99,176.23,176.16,3.17]
[1753905584917,7.3097356,176.22,176.14,108.96]
[1753905585218,2.99,176.23,176.16,3.17]
[1753905585418,2.99,176.23,176.17,6.63676915]
[1753905585723,2.99,176.23,176.16,9.80676915]
[1753905585919,5.6757,176.2,176.16,9.80676915]
[1753905586118,5.6757,176.2,176.17,3.17]
[1753905586416,5.6758,176.19,176.18,108.94]
[1753905586810,2.99,176.26,176.18,108.94]
[1753905587415,2.99,176.24,176.18,108.94]
[1753905588211,2.99,176.24,176.09,3.17]
[1753905588519,2.99,176.24,176.13,6.63676915]
[1753905588717,5.6769,176.16,176.13,9.80676915]
[1753905588918,2.99,176.22,176.13,9.80676915]
[1753905589317,2.99,176.22,176.13,3.17]
[1753905589618,2.99,176.22,176.13,112.07]
[1753905589820,2.99,176.22,176.13,118.70676915]
[1753905590019,2.99,176.21,176.18,3.17]
[1753905590226,2.99,176.24,176.15,3.17]
[1753905590418,5.6763,176.18,176.16,108.9]
[1753905590621,11.3462,176.28,176.16,108.9]
[1753905590916,5.6764,176.17,176.16,108.9]
[1753905591122,6.63676915,176.18,176.1,108.9]
[1753905591317,6.63676915,176.16,176.1,108.9]
[1753905591520,8.6684,176.11,176.1,108.9]
[1753905591722,2.99,176.13,176.1,112.07]
[1753905591922,5.6784,176.11,176.1,112.07]
[1753905592122,5.6784,176.11,176.1,112.05]
[1753905592527,5.6781,176.12,176.1,112.05]
[1753905593021,5.6778,176.13,176.11,3.17]
[1753905593220,6.63676915,176.2,176.12,108.88]
[1753905593420,2.99,176.16,176.12,108.88]
[1753905593621,5.6777,176.13,176.12,108.88]
[1753905593817,2.99,176.16,176.1,108.88]
[1753905594230,2.99,176.08,176.06,3.17]
[1753905594429,6.63676915,176.14,176.06,108.88]
[1753905594430,2.99,176.13,176.06,108.88]
[1753905594630,5.6792,176.09,176.06,112.05]
[1753905594832,5.6792,176.09,176.08,3.17]
[1753905595126,2.99,176.13,176.07,3.17]
[1753905595924,6.63676915,176.2,176.09,6.63676915]
[1753905596130,2.99,176.16,176.1,3.17]
[1753905596328,2.99,176.16,176.12,9.80676915]
[1753905596529,5.6773,176.15,176.14,3.17]
[1753905596926,5.6773,176.15,176.13,108.88]